[Event "*** SCC Grand Prix: Titled Tuesday Blitz"]
[Site "Chess.com"]
[Date "2020.07.21"]
[Round "4"]
[White "Lion-Al-Messi"]
[Black "Playgood28"]
[Result "1-0"]
[WhiteElo "2443"]
[BlackElo "2275"]
[TimeControl "180+1"]
[EndTime "10:37:15 PDT"]
[Termination "Lion-Al-Messi won by resignation"]

1. e4 {[%clk 0:03:00.3]} 1... e5 {[%clk 0:02:59.1]} 2. Nf3 {[%clk 0:03:00.6]}
2... d6 {[%clk 0:02:59.4]} 3. d4 {[%clk 0:02:56.3]} 3... exd4 {[%clk 0:03:00.3]}
4. Nxd4 {[%clk 0:02:56.9]} 4... Nf6 {[%clk 0:02:59.6]} 5. Nc3 {[%clk 0:02:57.4]}
5... Be7 {[%clk 0:02:59.9]} 6. Be2 {[%clk 0:02:58]} 6... O-O {[%clk 0:02:59.3]}
7. O-O {[%clk 0:02:58.6]} 7... c5 {[%clk 0:02:59.6]} 8. Nf5 {[%clk 0:02:55.4]}
8... Bxf5 {[%clk 0:02:59.1]} 9. exf5 {[%clk 0:02:56.3]} 9... Nc6 {[%clk
0:02:58.1]} 10. Bg5 {[%clk 0:02:53.9]} 10... Re8 {[%clk 0:02:54.5]} 11. Bf3
{[%clk 0:02:52.6]} 11... Qd7 {[%clk 0:02:51.5]} 12. Bxf6 {[%clk 0:02:48.7]}
12... Bxf6 {[%clk 0:02:50.4]} 13. Nd5 {[%clk 0:02:48.4]} 13... Bxb2 {[%clk
0:02:40.7]} 14. Rb1 {[%clk 0:02:48.4]} 14... Be5 {[%clk 0:02:40.5]} 15. f6
{[%clk 0:02:48.6]} 15... Rac8 {[%clk 0:02:28.4]} 16. Bg4 {[%clk 0:02:42.5]}
16... Qd8 {[%clk 0:02:28.3]} 17. Rxb7 {[%clk 0:02:29.8]} 17... Bxf6 {[%clk
0:02:16.6]} 18. Rd7 {[%clk 0:02:13.7]} 18... Qa5 {[%clk 0:02:13.5]} 19. Nxf6+
{[%clk 0:02:13.7]} 19... gxf6 {[%clk 0:02:12.3]} 20. Qxd6 {[%clk 0:02:10.4]}
20... Ne5 {[%clk 0:02:07.5]} 21. Qxf6 {[%clk 0:01:53.9]} 21... Nxd7 {[%clk
0:02:01.5]} 22. Bxd7 {[%clk 0:01:54.8]} 22... Qd8 {[%clk 0:01:52.4]} 23. Qf5
{[%clk 0:01:52.3]} 23... Rb8 {[%clk 0:01:43.7]} 24. Bxe8 {[%clk 0:01:47.7]}
24... Qxe8 {[%clk 0:01:42.6]} 25. Qg5+ {[%clk 0:01:47.9]} 25... Kh8 {[%clk
0:01:22.9]} 26. h4 {[%clk 0:01:47.6]} 26... Qe6 {[%clk 0:01:13.5]} 27. Rd1
{[%clk 0:01:43.5]} 27... Rg8 {[%clk 0:01:09.8]} 28. Qxc5 {[%clk 0:01:39.4]}
28... h6 {[%clk 0:00:50]} 29. Rd6 {[%clk 0:01:29.6]} 29... Qe1+ {[%clk
0:00:35.4]} 30. Kh2 {[%clk 0:01:29.2]} 30... Qc1 {[%clk 0:00:31.9]} 31. Qe5+
{[%clk 0:01:26.9]} 31... Kh7 {[%clk 0:00:30.3]} 32. Qf5+ {[%clk 0:01:26.9]}
32... Kh8 {[%clk 0:00:28.5]} 33. Qf6+ {[%clk 0:01:17.9]} 33... Rg7 {[%clk
0:00:27.7]} 34. Rd8+ {[%clk 0:01:17.1]} 34... Kh7 {[%clk 0:00:26.1]} 35. Qf5+
{[%clk 0:01:17.2]} 35... Rg6 {[%clk 0:00:25.2]} 36. Qxf7+ {[%clk 0:01:15.7]}
36... Rg7 {[%clk 0:00:24.9]} 37. Qf5+ {[%clk 0:01:15.1]} 1-0

[Event "*** SCC Grand Prix: Titled Tuesday Blitz"]
[Site "Chess.com"]
[Date "2020.07.21"]
[Round "4"]
[White "nrvisakh"]
[Black "fmshawnrl123"]
[Result "0-1"]
[WhiteElo "2825"]
[BlackElo "2673"]
[TimeControl "180+1"]
[EndTime "10:37:18 PDT"]
[Termination "fmshawnrl123 won by resignation"]

1. e4 {[%clk 0:03:00.9]} 1... c6 {[%clk 0:02:59.6]} 2. Nc3 {[%clk 0:02:47.9]}
2... d5 {[%clk 0:03:00.5]} 3. Nf3 {[%clk 0:02:48.2]} 3... Bg4 {[%clk 0:03:00.4]}
4. h3 {[%clk 0:02:47.3]} 4... Bxf3 {[%clk 0:03:00.6]} 5. Qxf3 {[%clk 0:02:48.2]}
5... Nf6 {[%clk 0:03:01.5]} 6. d3 {[%clk 0:02:44.5]} 6... e6 {[%clk 0:03:00.1]}
7. g3 {[%clk 0:02:41.8]} 7... d4 {[%clk 0:02:58.6]} 8. Ne2 {[%clk 0:02:39.8]}
8... c5 {[%clk 0:02:59.1]} 9. Bg2 {[%clk 0:02:37.8]} 9... Nc6 {[%clk 0:02:59.3]}
10. O-O {[%clk 0:02:33.6]} 10... Be7 {[%clk 0:02:55.2]} 11. g4 {[%clk
0:02:30.9]} 11... O-O {[%clk 0:02:51.6]} 12. a3 {[%clk 0:02:27.9]} 12... Nd7
{[%clk 0:02:49.6]} 13. Qg3 {[%clk 0:02:27.3]} 13... Bh4 {[%clk 0:02:45.9]} 14.
Qd6 {[%clk 0:02:23]} 14... Nce5 {[%clk 0:02:36.7]} 15. g5 {[%clk 0:02:22.7]}
15... Rc8 {[%clk 0:02:27.4]} 16. Nxd4 {[%clk 0:02:08.3]} 16... cxd4 {[%clk
0:02:24.6]} 17. Qxd4 {[%clk 0:02:09.2]} 17... Rxc2 {[%clk 0:01:42.8]} 18. Be3
{[%clk 0:01:59.9]} 18... Bxg5 {[%clk 0:01:36.3]} 19. f4 {[%clk 0:01:55.8]} 19...
Be7 {[%clk 0:01:34]} 20. Qa4 {[%clk 0:01:50.8]} 20... Re2 {[%clk 0:01:31.3]} 21.
Bxa7 {[%clk 0:01:24.5]} 21... Nxd3 {[%clk 0:01:26.5]} 22. Rad1 {[%clk
0:01:21.1]} 22... Bc5+ {[%clk 0:01:17.9]} 23. Kh2 {[%clk 0:01:05.9]} 23... Nxb2
{[%clk 0:00:49.8]} 24. Qxd7 {[%clk 0:00:45.6]} 24... Nxd1 {[%clk 0:00:45.2]} 25.
Qxd8 {[%clk 0:00:45.8]} 25... Rxd8 {[%clk 0:00:44.8]} 26. Bxc5 {[%clk
0:00:46.7]} 26... Rdd2 {[%clk 0:00:38.1]} 27. Rg1 {[%clk 0:00:43.6]} 27... Ne3
{[%clk 0:00:35.6]} 28. Bxe3 {[%clk 0:00:40.5]} 28... Rxe3 {[%clk 0:00:36.5]} 0-1

[Event "*** SCC Grand Prix: Titled Tuesday Blitz"]
[Site "Chess.com"]
[Date "2020.07.21"]
[Round "4"]
[White "Arjun2002"]
[Black "tigra"]
[Result "0-1"]
[WhiteElo "2616"]
[BlackElo "2847"]
[TimeControl "180+1"]
[EndTime "10:37:21 PDT"]
[Termination "tigra won by resignation"]

1. e4 {[%clk 0:03:00.9]} 1... c5 {[%clk 0:02:59.5]} 2. Nf3 {[%clk 0:03:00.7]}
2... d6 {[%clk 0:03:00.2]} 3. d4 {[%clk 0:03:01]} 3... cxd4 {[%clk 0:03:01.1]}
4. Nxd4 {[%clk 0:03:01.6]} 4... Nf6 {[%clk 0:03:01.9]} 5. Nc3 {[%clk 0:03:01.9]}
5... a6 {[%clk 0:03:02.6]} 6. Bd3 {[%clk 0:03:02.1]} 6... Nc6 {[%clk 0:03:02.1]}
7. Nxc6 {[%clk 0:02:57.5]} 7... bxc6 {[%clk 0:03:01.9]} 8. O-O {[%clk
0:02:57.4]} 8... e5 {[%clk 0:03:02.2]} 9. f4 {[%clk 0:02:53.4]} 9... Nd7 {[%clk
0:03:02.8]} 10. Be3 {[%clk 0:02:50.7]} 10... Be7 {[%clk 0:03:02.7]} 11. Kh1
{[%clk 0:02:45.5]} 11... O-O {[%clk 0:03:02.5]} 12. Qf3 {[%clk 0:02:45.2]} 12...
exf4 {[%clk 0:03:01.6]} 13. Bxf4 {[%clk 0:02:45]} 13... Ne5 {[%clk 0:03:00.9]}
14. Bxe5 {[%clk 0:02:45.1]} 14... dxe5 {[%clk 0:03:01.1]} 15. Bc4 {[%clk
0:02:45.5]} 15... Bf6 {[%clk 0:02:14.6]} 16. Nd1 {[%clk 0:02:28.8]} 16... Qd4
{[%clk 0:02:08.5]} 17. Bb3 {[%clk 0:02:21.9]} 17... a5 {[%clk 0:01:49.3]} 18. c3
{[%clk 0:02:11.1]} 18... Qb6 {[%clk 0:01:49.2]} 19. Bc4 {[%clk 0:02:08.1]} 19...
Ra7 {[%clk 0:01:21.7]} 20. Rf2 {[%clk 0:01:35.6]} 20... Bg5 {[%clk 0:01:16.4]}
21. Qh5 {[%clk 0:01:20.3]} 21... h6 {[%clk 0:01:15.1]} 22. g3 {[%clk 0:01:05.3]}
22... Qc5 {[%clk 0:01:12.3]} 23. Qe2 {[%clk 0:00:59.6]} 23... Bh3 {[%clk
0:01:08.4]} 24. b3 {[%clk 0:00:48.3]} 24... Rd7 {[%clk 0:01:05.8]} 25. Qe1
{[%clk 0:00:41.1]} 25... Rfd8 {[%clk 0:01:01.3]} 26. Nb2 {[%clk 0:00:32.6]}
26... Kh8 {[%clk 0:00:49.1]} 27. Rd1 {[%clk 0:00:24.6]} 27... Rxd1 {[%clk
0:00:47.2]} 0-1

[Event "*** SCC Grand Prix: Titled Tuesday Blitz"]
[Site "Chess.com"]
[Date "2020.07.21"]
[Round "4"]
[White "ThePatrick27"]
[Black "Logman74"]
[Result "0-1"]
[WhiteElo "2510"]
[BlackElo "2341"]
[TimeControl "180+1"]
[EndTime "10:37:21 PDT"]
[Termination "Logman74 won by checkmate"]

1. d4 {[%clk 0:03:00.9]} 1... Nf6 {[%clk 0:02:58.8]} 2. c4 {[%clk 0:03:01.4]}
2... e6 {[%clk 0:02:57.9]} 3. Nc3 {[%clk 0:03:01]} 3... Bb4 {[%clk 0:02:56.4]}
4. e3 {[%clk 0:03:00.1]} 4... b6 {[%clk 0:02:55.2]} 5. Bd3 {[%clk 0:02:58.8]}
5... Bb7 {[%clk 0:02:54.9]} 6. f3 {[%clk 0:02:58.6]} 6... O-O {[%clk 0:02:50.1]}
7. Ne2 {[%clk 0:02:58.4]} 7... d5 {[%clk 0:02:48.9]} 8. O-O {[%clk 0:02:52.4]}
8... Nbd7 {[%clk 0:02:47.9]} 9. a3 {[%clk 0:02:17.7]} 9... Bd6 {[%clk
0:02:41.2]} 10. Bd2 {[%clk 0:02:05.9]} 10... c5 {[%clk 0:02:38]} 11. cxd5 {[%clk
0:02:02.3]} 11... exd5 {[%clk 0:02:36]} 12. Rc1 {[%clk 0:01:57.9]} 12... Re8
{[%clk 0:02:35.5]} 13. Ng3 {[%clk 0:01:48]} 13... g6 {[%clk 0:02:15]} 14. Bb1
{[%clk 0:01:36.4]} 14... Ba6 {[%clk 0:02:02.5]} 15. Rf2 {[%clk 0:01:29.5]} 15...
Bxg3 {[%clk 0:01:59.2]} 16. hxg3 {[%clk 0:01:29.2]} 16... Nh5 {[%clk 0:01:58.4]}
17. Kh2 {[%clk 0:01:02.5]} 17... Qg5 {[%clk 0:01:55]} 18. e4 {[%clk 0:00:36.9]}
18... Qxg3+ {[%clk 0:01:51.2]} 19. Kg1 {[%clk 0:00:37.1]} 19... cxd4 {[%clk
0:01:29.4]} 20. Nxd5 {[%clk 0:00:36.6]} 20... Ne5 {[%clk 0:01:21.5]} 21. Qa4
{[%clk 0:00:19.2]} 21... Bd3 {[%clk 0:01:15.5]} 22. Ba2 {[%clk 0:00:14.3]} 22...
Qh4 {[%clk 0:01:02.4]} 23. Qb3 {[%clk 0:00:06.2]} 23... Ng3 {[%clk 0:00:57.4]}
24. Rff1 {[%clk 0:00:04.9]} 24... Ne2# {[%clk 0:00:54.6]} 0-1

[Event "*** SCC Grand Prix: Titled Tuesday Blitz"]
[Site "Chess.com"]
[Date "2020.07.21"]
[Round "4"]
[White "ItsCheckM8Mate"]
[Black "Malysch"]
[Result "1-0"]
[WhiteElo "2298"]
[BlackElo "2429"]
[TimeControl "180+1"]
[EndTime "10:37:21 PDT"]
[Termination "ItsCheckM8Mate won on time"]

1. e4 {[%clk 0:03:00.9]} 1... d5 {[%clk 0:02:59.8]} 2. exd5 {[%clk 0:03:00.5]}
2... Qxd5 {[%clk 0:03:00.7]} 3. Nc3 {[%clk 0:03:00.6]} 3... Qd6 {[%clk
0:03:00.6]} 4. d4 {[%clk 0:03:00.5]} 4... Nf6 {[%clk 0:02:58.8]} 5. Bc4 {[%clk
0:03:00.4]} 5... a6 {[%clk 0:02:57.8]} 6. Bb3 {[%clk 0:02:57.3]} 6... b5 {[%clk
0:02:56.7]} 7. Nge2 {[%clk 0:02:55.7]} 7... Bb7 {[%clk 0:02:55.3]} 8. Bf4 {[%clk
0:02:54.3]} 8... Qb6 {[%clk 0:02:54.2]} 9. O-O {[%clk 0:02:47.3]} 9... e6 {[%clk
0:02:53]} 10. d5 {[%clk 0:02:34.1]} 10... c5 {[%clk 0:02:50.7]} 11. dxe6 {[%clk
0:02:22]} 11... c4 {[%clk 0:02:49.6]} 12. exf7+ {[%clk 0:02:12]} 12... Kxf7
{[%clk 0:02:50.5]} 13. Be3 {[%clk 0:01:29.2]} 13... Qc6 {[%clk 0:02:45.3]} 14.
f3 {[%clk 0:01:29.1]} 14... Bc5 {[%clk 0:02:36.2]} 15. Nd4 {[%clk 0:01:26.5]}
15... Bxd4 {[%clk 0:02:13.1]} 16. Qxd4 {[%clk 0:01:24.9]} 16... Nbd7 {[%clk
0:02:10.5]} 17. Ne4 {[%clk 0:01:16.1]} 17... cxb3 {[%clk 0:01:47]} 18. Nd6+
{[%clk 0:01:13.2]} 18... Ke7 {[%clk 0:01:45.1]} 19. Rfe1 {[%clk 0:01:00.6]}
19... Qxd6 {[%clk 0:01:11.5]} 20. Bf4+ {[%clk 0:00:58.9]} 20... Qe6 {[%clk
0:01:11.6]} 21. Qd6+ {[%clk 0:00:55.7]} 1-0

[Event "*** SCC Grand Prix: Titled Tuesday Blitz"]
[Site "Chess.com"]
[Date "2020.07.21"]
[Round "4"]
[White "Kolle05"]
[Black "Evachess2006"]
[Result "1-0"]
[WhiteElo "2367"]
[BlackElo "1606"]
[TimeControl "180+1"]
[EndTime "10:37:23 PDT"]
[Termination "Kolle05 won on time"]

1. e4 {[%clk 0:03:00.9]} 1... e5 {[%clk 0:02:57.5]} 2. Nf3 {[%clk 0:03:00.4]}
2... Nc6 {[%clk 0:02:57.4]} 3. Bb5 {[%clk 0:02:59.6]} 3... a6 {[%clk 0:02:38.1]}
4. Ba4 {[%clk 0:02:56.1]} 4... Nf6 {[%clk 0:02:19]} 5. Qe2 {[%clk 0:02:54]} 5...
b5 {[%clk 0:02:10.4]} 6. Bb3 {[%clk 0:02:50.5]} 6... Be7 {[%clk 0:02:11.3]} 7.
O-O {[%clk 0:02:48.5]} 7... O-O {[%clk 0:01:42.9]} 8. a4 {[%clk 0:02:45.4]} 8...
bxa4 {[%clk 0:01:06.7]} 9. Bxa4 {[%clk 0:02:38.8]} 9... Nd4 {[%clk 0:01:00.7]}
10. Nxd4 {[%clk 0:02:35.9]} 10... exd4 {[%clk 0:01:01.6]} 11. e5 {[%clk
0:02:33.9]} 11... Nd5 {[%clk 0:00:58.3]} 12. Qe4 {[%clk 0:02:32.3]} 12... Bb7
{[%clk 0:00:54.5]} 13. Qxd4 {[%clk 0:02:30.5]} 13... c5 {[%clk 0:00:47.9]} 14.
Qg4 {[%clk 0:02:21.5]} 14... d6 {[%clk 0:00:36]} 15. exd6 {[%clk 0:02:08.6]}
15... Qxd6 {[%clk 0:00:36.9]} 16. Nc3 {[%clk 0:02:07.1]} 16... Nxc3 {[%clk
0:00:35.5]} 17. dxc3 {[%clk 0:02:08]} 17... Qg6 {[%clk 0:00:35.3]} 18. Qxg6
{[%clk 0:02:06.7]} 18... fxg6 {[%clk 0:00:36.2]} 19. Be3 {[%clk 0:02:05.9]}
19... Rad8 {[%clk 0:00:21.4]} 20. Rfd1 {[%clk 0:02:03.2]} 20... Rxd1+ {[%clk
0:00:17.7]} 21. Rxd1 {[%clk 0:02:04.1]} 21... Rd8 {[%clk 0:00:17.6]} 22. Bb3+
{[%clk 0:02:03.9]} 22... Kh8 {[%clk 0:00:08.4]} 23. Rxd8+ {[%clk 0:02:04.8]}
23... Bxd8 {[%clk 0:00:08.8]} 24. Bxc5 {[%clk 0:02:05.3]} 24... Bc7 {[%clk
0:00:08.8]} 25. Bd4 {[%clk 0:02:05.2]} 25... a5 {[%clk 0:00:09.4]} 26. c4 {[%clk
0:02:05.2]} 26... h6 {[%clk 0:00:09.9]} 27. c5 {[%clk 0:02:05.4]} 27... Bc6
{[%clk 0:00:10.1]} 28. Bc4 {[%clk 0:02:05]} 28... a4 {[%clk 0:00:10.6]} 29. b4
{[%clk 0:02:01.5]} 29... axb3 {[%clk 0:00:09.9]} 30. cxb3 {[%clk 0:02:01.2]}
30... Ba5 {[%clk 0:00:10.4]} 31. f3 {[%clk 0:01:57.7]} 31... Bb4 {[%clk
0:00:10.5]} 32. Kf2 {[%clk 0:01:58.3]} 32... g5 {[%clk 0:00:09.6]} 33. Ke3
{[%clk 0:01:58.6]} 33... Kh7 {[%clk 0:00:10.1]} 34. Bf7 {[%clk 0:01:57.1]} 34...
g6 {[%clk 0:00:09.2]} 35. Kd3 {[%clk 0:01:54.5]} 35... Bb5+ {[%clk 0:00:08.5]}
36. Bc4 {[%clk 0:01:54.9]} 36... Bc6 {[%clk 0:00:08.3]} 37. Ke3 {[%clk
0:01:52.7]} 37... h5 {[%clk 0:00:03.3]} 38. Kd3 {[%clk 0:01:52.5]} 38... g4
{[%clk 0:00:02.8]} 39. fxg4 {[%clk 0:01:49.4]} 39... hxg4 {[%clk 0:00:03.7]} 40.
g3 {[%clk 0:01:49.1]} 40... Bf3 {[%clk 0:00:02.6]} 41. Ke3 {[%clk 0:01:47.4]}
41... Bc6 {[%clk 0:00:03]} 42. Kf4 {[%clk 0:01:47.5]} 1-0

[Event "*** SCC Grand Prix: Titled Tuesday Blitz"]
[Site "Chess.com"]
[Date "2020.07.21"]
[Round "4"]
[White "bocah_sakit"]
[Black "TigrVShlyape"]
[Result "1-0"]
[WhiteElo "2736"]
[BlackElo "2851"]
[TimeControl "180+1"]
[EndTime "10:37:28 PDT"]
[Termination "bocah_sakit won on time"]

1. e4 {[%clk 0:03:00.9]} 1... g6 {[%clk 0:02:53.3]} 2. d4 {[%clk 0:03:00.9]}
2... Bg7 {[%clk 0:02:53.4]} 3. Nc3 {[%clk 0:03:01.5]} 3... d6 {[%clk 0:02:53.4]}
4. Be3 {[%clk 0:03:01.2]} 4... a6 {[%clk 0:02:53.4]} 5. Qd2 {[%clk 0:02:59.3]}
5... b5 {[%clk 0:02:52.1]} 6. O-O-O {[%clk 0:02:49.7]} 6... Bb7 {[%clk
0:02:47.8]} 7. f3 {[%clk 0:02:49.1]} 7... Nd7 {[%clk 0:02:46]} 8. h4 {[%clk
0:02:49]} 8... h6 {[%clk 0:02:45.2]} 9. Nh3 {[%clk 0:02:46.3]} 9... e6 {[%clk
0:02:31.2]} 10. Kb1 {[%clk 0:02:42.5]} 10... Ngf6 {[%clk 0:02:27.4]} 11. g4
{[%clk 0:02:40.5]} 11... Nb6 {[%clk 0:02:26.8]} 12. Bd3 {[%clk 0:02:38.4]} 12...
Nfd7 {[%clk 0:02:25.4]} 13. h5 {[%clk 0:02:36.1]} 13... g5 {[%clk 0:02:24.9]}
14. f4 {[%clk 0:02:36.7]} 14... gxf4 {[%clk 0:02:22.5]} 15. Nxf4 {[%clk
0:02:37.2]} 15... Qe7 {[%clk 0:02:18.2]} 16. Rhf1 {[%clk 0:02:22.3]} 16... O-O-O
{[%clk 0:02:16.6]} 17. a4 {[%clk 0:02:15.6]} 17... b4 {[%clk 0:02:07.3]} 18. Na2
{[%clk 0:02:10.6]} 18... a5 {[%clk 0:01:54.1]} 19. c3 {[%clk 0:02:07.7]} 19...
c5 {[%clk 0:01:52]} 20. cxb4 {[%clk 0:02:02.3]} 20... cxb4 {[%clk 0:01:02.4]}
21. Nxb4 {[%clk 0:02:01.8]} 21... axb4 {[%clk 0:00:56.5]} 22. Qxb4 {[%clk
0:02:02.7]} 22... e5 {[%clk 0:00:36.1]} 23. dxe5 {[%clk 0:01:57.6]} 23... Qxe5
{[%clk 0:00:35]} 24. Bxb6 {[%clk 0:01:51.6]} 24... Nxb6 {[%clk 0:00:27.1]} 25.
Qxb6 {[%clk 0:01:52.5]} 25... Kb8 {[%clk 0:00:25.8]} 26. Nd5 {[%clk 0:01:47.2]}
26... Rd7 {[%clk 0:00:22]} 27. Rc1 {[%clk 0:01:42.7]} 27... Qd4 {[%clk
0:00:20.7]} 28. Qb5 {[%clk 0:01:29]} 28... Ka7 {[%clk 0:00:19.9]} 29. Rc3 {[%clk
0:01:23]} 29... Rhd8 {[%clk 0:00:19]} 30. Rfc1 {[%clk 0:01:13.5]} 30... Be5
{[%clk 0:00:16.2]} 31. Rc7 {[%clk 0:01:08.6]} 31... Rxc7 {[%clk 0:00:15.8]} 32.
Rxc7 {[%clk 0:01:09.5]} 1-0

[Event "*** SCC Grand Prix: Titled Tuesday Blitz"]
[Site "Chess.com"]
[Date "2020.07.21"]
[Round "4"]
[White "boasovietica"]
[Black "Ashedu66"]
[Result "1-0"]
[WhiteElo "2418"]
[BlackElo "2222"]
[TimeControl "180+1"]
[EndTime "10:37:28 PDT"]
[Termination "boasovietica won by resignation"]

1. e4 {[%clk 0:03:00.9]} 1... e5 {[%clk 0:02:59.7]} 2. Nf3 {[%clk 0:03:00.2]}
2... Nc6 {[%clk 0:02:59.8]} 3. Bb5 {[%clk 0:02:59]} 3... Nge7 {[%clk 0:02:58.6]}
4. Nc3 {[%clk 0:02:52]} 4... g6 {[%clk 0:02:58.3]} 5. d4 {[%clk 0:02:47.9]} 5...
exd4 {[%clk 0:02:57.5]} 6. Nd5 {[%clk 0:02:47.9]} 6... Bg7 {[%clk 0:02:57.5]} 7.
Bg5 {[%clk 0:02:47.4]} 7... h6 {[%clk 0:02:57.4]} 8. Bf6 {[%clk 0:02:41.2]} 8...
Bxf6 {[%clk 0:02:55.2]} 9. Nxf6+ {[%clk 0:02:40.9]} 9... Kf8 {[%clk 0:02:55.3]}
10. Nxd4 {[%clk 0:02:29]} 10... Nf5 {[%clk 0:02:49.6]} 11. exf5 {[%clk
0:02:23.1]} 11... Qxf6 {[%clk 0:02:49]} 12. Bxc6 {[%clk 0:02:19]} 12... dxc6
{[%clk 0:02:44.8]} 13. fxg6 {[%clk 0:02:15.9]} 13... fxg6 {[%clk 0:02:33.9]} 14.
O-O {[%clk 0:02:12.3]} 14... Kg7 {[%clk 0:02:33.4]} 15. Re1 {[%clk 0:02:05.6]}
15... Rd8 {[%clk 0:02:13.8]} 16. Re4 {[%clk 0:01:40.5]} 16... Bf5 {[%clk
0:01:29.6]} 17. Rf4 {[%clk 0:01:16]} 17... c5 {[%clk 0:01:18.2]} 18. Nxf5+
{[%clk 0:01:12.9]} 18... Qxf5 {[%clk 0:00:58.1]} 19. Rxf5 {[%clk 0:01:06.4]}
19... Rxd1+ {[%clk 0:00:56.1]} 20. Rxd1 {[%clk 0:01:07.3]} 20... gxf5 {[%clk
0:00:56.2]} 21. Rd7+ {[%clk 0:01:07.4]} 21... Kf6 {[%clk 0:00:56.4]} 22. Rxc7
{[%clk 0:01:07.2]} 22... Rd8 {[%clk 0:00:56.4]} 23. g3 {[%clk 0:01:06.9]} 23...
b6 {[%clk 0:00:54.4]} 24. Rxa7 {[%clk 0:01:03.5]} 24... Rd2 {[%clk 0:00:53.5]}
25. Rb7 {[%clk 0:01:03.3]} 25... Rxc2 {[%clk 0:00:51.9]} 26. Rxb6+ {[%clk
0:01:03.5]} 26... Ke5 {[%clk 0:00:49.2]} 27. a4 {[%clk 0:00:59]} 27... Ke4
{[%clk 0:00:47.8]} 28. Kg2 {[%clk 0:00:59.1]} 28... f4 {[%clk 0:00:46.5]} 29.
gxf4 {[%clk 0:00:58.5]} 29... Kxf4 {[%clk 0:00:46.7]} 30. a5 {[%clk 0:00:54.5]}
30... h5 {[%clk 0:00:45.1]} 31. a6 {[%clk 0:00:50.3]} 31... Rc1 {[%clk
0:00:44.5]} 32. Rf6+ {[%clk 0:00:38]} 32... Kg5 {[%clk 0:00:40.9]} 33. Rf3
{[%clk 0:00:37.1]} 1-0

[Event "*** SCC Grand Prix: Titled Tuesday Blitz"]
[Site "Chess.com"]
[Date "2020.07.21"]
[Round "4"]
[White "baag"]
[Black "chigorin28"]
[Result "1-0"]
[WhiteElo "2619"]
[BlackElo "2428"]
[TimeControl "180+1"]
[EndTime "10:37:29 PDT"]
[Termination "baag won on time"]

1. d4 {[%clk 0:03:00.9]} 1... Nf6 {[%clk 0:02:58.8]} 2. c4 {[%clk 0:03:01.4]}
2... d6 {[%clk 0:02:59.1]} 3. Nf3 {[%clk 0:02:59.3]} 3... g6 {[%clk 0:02:59.3]}
4. Nc3 {[%clk 0:02:59.8]} 4... Bg7 {[%clk 0:02:59.6]} 5. g3 {[%clk 0:03:00.4]}
5... O-O {[%clk 0:02:58.9]} 6. Bg2 {[%clk 0:03:00.9]} 6... Nc6 {[%clk
0:02:58.2]} 7. O-O {[%clk 0:03:01.3]} 7... e5 {[%clk 0:02:58.2]} 8. dxe5 {[%clk
0:03:02.2]} 8... dxe5 {[%clk 0:02:58.3]} 9. Bg5 {[%clk 0:03:02.7]} 9... h6
{[%clk 0:02:39.4]} 10. Qxd8 {[%clk 0:02:58.3]} 10... Rxd8 {[%clk 0:02:27.3]} 11.
Bxf6 {[%clk 0:02:59.2]} 11... Bxf6 {[%clk 0:02:27.7]} 12. Nd5 {[%clk 0:02:59.5]}
12... Bg7 {[%clk 0:02:02.3]} 13. Nxc7 {[%clk 0:02:59]} 13... Rb8 {[%clk
0:02:01.9]} 14. Rad1 {[%clk 0:02:59.3]} 14... Nd4 {[%clk 0:01:47.1]} 15. e3
{[%clk 0:02:38.9]} 15... Nxf3+ {[%clk 0:01:42.6]} 16. Bxf3 {[%clk 0:02:39.8]}
16... Bh3 {[%clk 0:01:40.4]} 17. Bg2 {[%clk 0:02:14]} 17... Bxg2 {[%clk
0:01:22.1]} 18. Kxg2 {[%clk 0:02:11.9]} 18... Rdc8 {[%clk 0:01:06.8]} 19. Rd7
{[%clk 0:02:10.5]} 19... b6 {[%clk 0:01:03.7]} 20. Rfd1 {[%clk 0:02:01.9]} 20...
Bf8 {[%clk 0:01:03.1]} 21. b3 {[%clk 0:01:59.2]} 21... a6 {[%clk 0:00:26.9]} 22.
a4 {[%clk 0:01:41.2]} 22... Kg7 {[%clk 0:00:21.5]} 23. Nxa6 {[%clk 0:01:39.1]}
23... Ra8 {[%clk 0:00:18]} 24. Nc7 {[%clk 0:01:39.7]} 24... Rab8 {[%clk
0:00:13.5]} 25. Ne6+ {[%clk 0:01:29.6]} 25... Kg8 {[%clk 0:00:12.3]} 26. Nxf8
{[%clk 0:01:30.5]} 26... Rxf8 {[%clk 0:00:12.5]} 27. Re7 {[%clk 0:01:28.1]}
27... Rfe8 {[%clk 0:00:09.9]} 28. Rxe8+ {[%clk 0:01:28.5]} 28... Rxe8 {[%clk
0:00:10.3]} 29. Rd6 {[%clk 0:01:29.2]} 29... Rb8 {[%clk 0:00:10.2]} 30. Kf3
{[%clk 0:01:26.4]} 30... Kf8 {[%clk 0:00:10.5]} 31. Ke4 {[%clk 0:01:26.7]} 31...
Ke7 {[%clk 0:00:10.8]} 32. Kxe5 {[%clk 0:01:27.1]} 32... Rc8 {[%clk 0:00:03.2]}
33. Rxb6 {[%clk 0:01:26.7]} 33... Rc5+ {[%clk 0:00:03.3]} 34. Kd4 {[%clk
0:01:27.1]} 34... Rf5 {[%clk 0:00:03.1]} 35. f4 {[%clk 0:01:26.4]} 35... Rh5
{[%clk 0:00:03]} 36. h4 {[%clk 0:01:25.5]} 36... g5 {[%clk 0:00:03.2]} 37. hxg5
{[%clk 0:01:22.9]} 37... hxg5 {[%clk 0:00:03.5]} 38. Rb5 {[%clk 0:01:23.8]}
38... f6 {[%clk 0:00:01.8]} 39. fxg5 {[%clk 0:01:24.1]} 39... fxg5 {[%clk
0:00:01.2]} 40. g4 {[%clk 0:01:24.7]} 1-0